[Event "Czech Championship Women 2022"]
[Site "Jaromerice nad Rokytnou"]
[Date "2022.05.24"]
[Round "4.5"]
[White "Novosadova, Kristyna"]
[Black "Koubova, Anna Marie"]
[Result "0-1"]
[ECO "C10"]
[WhiteElo "2147"]
[BlackElo "2115"]
[Annotator "TA"]
[PlyCount "148"]
[EventDate "2022.05.24"]
[EventType "tourn"]
[EventCountry "CZE"]
[SourceTitle "playchess.com"]
[Source "ChessBase"]
[SourceQuality "1"]
[TimeControl "40/5400+30:1800+30"]

{[%evp 9,148,8,14,0,8,-21,0,-6,-14,-29,47,13,21,15,11,4,6,7,20,14,29,33,25,36,34,20,10,0,4,0,0,0,0,0,-7,-19,0,0,0,9,0,-20,-19,-51,-27,-54,-42,-68,-4,-77,-23,-128,-136,-118,-118,-207,-174,-173,-150,-138,-102,-158,-159,-306,-301,-290,-273,-337,-349,-340,-332,-314,-283,-365,-291,-817,-828,-807,-783,-768,-767,-592,-548,-7533,-6629,-29956,-29959,-29967,-29957,-29969,-29970,-29971,-29968,-29967,-29969,-29969,-29969,-29970,-29971,-29972,-29973,-29976,-29977,-29977,-29968,-29972,-29964,-29975,-29978,-29978,-29975,-29975,-29972,-29975,-29971,-29977,-29977,-29977,-29978,-29978,-29978,-29978,-29979,-29978,-29976,-11422,-10616,-7540,0,-7385,-7222,-6102,-6095,-29984,-29985,-29985,-29986,-29986,-29985,-29985,-29982]} 1. e4 {[%emt 0:00:04] Finkel,A} e6 {[%emt 0:00:17]} 2. d4 {[%emt 0:00:15]} d5 {[%emt 0:00:11]} 3. Nc3 {[%emt 0:00:05]} Nc6 {[%emt 0:00:32]} 4. Nge2 {[%emt 0:05:54]} dxe4 {[%emt 0:11:55]} 5. Nxe4 {[%emt 0:00:13]} Nf6 {[%emt 0:00:49]} 6. Nxf6+ {[%emt 0:01:09] C10: French with 3 Nc3: Unusual Black 3rd moves and 3...dxe4.} Qxf6 {[%emt 0:00:19] [#]} 7. h4 $146 {[%emt 0:00:31]} ({Predecessor:} 7. Be3 b6 8. Qd2 Bb7 9. O-O-O h6 10. c3 O-O-O 11. Qc2 e5 12. d5 Ne7 13. c4 {0-1 (42) Hector,J (2542)-Hall,J (2486) Malmo 1999 CBM 072 [Finkel,A]}) 7... Bd6 {[%emt 0:14:14]} (7... e5 $5 {[%cal Re5d4]}) 8. Bg5 {[%emt 0:02:50] The position is equal.} Qf5 {[%emt 0:02:13] White should prevent ...Nb4.} 9. Nc3 {[%emt 0:04:04]} e5 {[%emt 0:03:19]} (9... Nb4 $11 10. Rc1 h6) 10. Bd3 {[%emt 0:01:51]} Qg4 {[%emt 0:00:41]} 11. d5 {[%emt 0:06:44] [#] Hoping for Qxg4.} Qxd1+ {[%emt 0:05:00]} (11... Qxg2 $2 12. Be4 Qg4 13. dxc6 $18) 12. Rxd1 {[%emt 0:00:03]} Nb4 {[%emt 0:01:29]} 13. Bb5+ {[%emt 0:01:47]} Kf8 {[%emt 0:01:32]} 14. Ba4 {[%emt 0:01:56]} f6 {[%emt 0:02:07]} 15. Be3 {[%emt 0:00:42]} Bf5 {[%emt 0:01:41]} 16. Rd2 {[%emt 0:00:27]} (16. Kd2 {keeps more tension.} b5 17. Nxb5 Nxd5 18. Nxd6 cxd6 19. c4) 16... Na6 {[%emt 0:05:32]} 17. Bb5 {[%emt 0:04:27][%cal Ba4b5,Bb5e2,Be2f3][%mdl 32]} Nc5 {[%emt 0:04:06]} 18. f3 {[%emt 0:01:37]} h5 {[%emt 0:02:42]} 19. O-O {[%emt 0:01:58]} a6 {[%emt 0:07:13]} 20. Be2 {[%emt 0:00:24]} Kf7 {[%emt 0:02:29]} 21. f4 {[%emt 0:09:49]} exf4 {[%emt 0:06:46]} 22. Bxf4 {[%emt 0:00:18]} Ne4 {[%emt 0:01:16]} 23. Nxe4 {[%emt 0:10:57]} Bxe4 {[%emt 0:00:13]} 24. Bxd6 {[%emt 0:09:46]} cxd6 {[%emt 0:00:06]} 25. Bf3 {[%emt 0:05:01]} Rae8 {[%emt 0:03:05]} 26. c3 {[%emt 0:08:45]} Re5 {[%emt 0:09:23]} 27. Rd4 {[%emt 0:03:34]} Rhe8 {[%emt 0:01:03]} 28. a4 {[%emt 0:06:01]} b5 {[%emt 0:04:39]} (28... Bxf3 $15 29. Rxf3 Kg6) 29. axb5 {[%emt 0:01:30]} (29. Bd1) (29. Bd1 $1 $11) 29... axb5 {[%emt 0:00:07]} (29... Bxf3 $17 30. Rxf3 axb5) 30. Rb4 {[%emt 0:02:01]} (30. Bd1) (30. Bd1 $11) 30... Bxf3 $17 {[%emt 0:00:39]} (30... Bxd5 31. Rxb5 Bxf3 32. Rxe5 dxe5 33. gxf3) ({And not} 30... Bxd5 31. Rxb5 Bxf3 32. Rxe5 dxe5 33. gxf3 $15) 31. Rxf3 {[%emt 0:02:40]} Rxd5 {[%emt 0:00:11][%mdl 4096] Endgame KRR-KRR} 32. c4 {[%emt 0:02:01]} (32. g3) (32. g3 $17) 32... bxc4 {[%emt 0:03:50]} 33. Rxc4 {[%emt 0:00:05]} Re7 {[%emt 0:00:11]} 34. b4 {[%emt 0:00:43]} Rb7 {[%emt 0:00:22]} 35. Kh2 {[%emt 0:01:34]} (35. Rb3 $142) 35... Rdb5 {[%emt 0:00:27]} 36. Rff4 {[%emt 0:00:47]} (36. Rb3) (36. Rb3 $17) 36... d5 $19 {[%emt 0:04:53]} 37. Rcd4 {[%emt 0:01:51]} Ke6 {[%emt 0:01:06] Inhibits Rf5. And now ...Ke5 would win.} 38. g4 {[%emt 0:00:03]} hxg4 {[%emt 0:00:57]} 39. Rxg4 {[%emt 0:00:48]} Ke5 {[%emt 0:00:47]} 40. h5 {[%emt 0:01:34]} f5 {[%emt 0:00:41]} 41. Rgf4 {[%emt 0:31:27]} Ra7 {[%emt 0:04:48] ...Ra2+ is the strong threat.} 42. Kg3 $2 {[%emt 0:00:00]} (42. Rh4) 42... Ra3+ {[%emt 0:05:57]} 43. Kf2 {[%emt 0:00:00]} Rh3 {[%emt 0:04:51]} 44. Rh4 {[%emt 0:00:00]} Rxh4 {[%emt 0:00:51]} 45. Rxh4 {[%emt 0:00:00] KR-KR} d4 {[%emt 0:00:16]} 46. h6 {[%emt 0:00:00]} gxh6 {[%emt 0:00:24] White must now prevent ...h5.} 47. Rxh6 {[%emt 0:00:00]} Rxb4 {[%emt 0:00:10]} 48. Rh8 {[%emt 0:00:00]} Rb3 {[%emt 0:05:00]} 49. Rd8 {[%emt 0:00:00]} Ke4 {[%emt 0:00:56]} 50. Re8+ {[%emt 0:00:00]} Kf4 {[%emt 0:04:58]} 51. Rh8 {[%emt 0:00:00]} Rb2+ {[%emt 0:00:27]} 52. Ke1 {[%emt 0:00:00]} Ke3 {[%emt 0:01:06][%cal Rb2b1]} 53. Re8+ {[%emt 0:00:00]} Kd3 {[%emt 0:01:19]} 54. Rf8 {[%emt 0:00:00]} Re2+ {[%emt 0:05:07]} 55. Kf1 {[%emt 0:00:00]} Re5 {[%emt 0:00:09]} 56. Kf2 {[%emt 0:00:00]} Rd5 {[%emt 0:00:39]} 57. Ra8 {[%emt 0:00:00]} Kc3 {[%emt 0:00:54]} 58. Rc8+ {[%emt 0:00:00]} Kd2 {[%emt 0:00:37]} 59. Ra8 {[%emt 0:00:00]} Rc5 {[%emt 0:00:18]} 60. Ra2+ {[%emt 0:00:00]} Kc1 {[%emt 0:01:30]} 61. Ra4 {[%emt 0:00:00]} Rd5 {[%emt 0:00:29]} 62. Rc4+ {[%emt 0:00:00]} Kd2 {[%emt 0:00:14]} 63. Ra4 {[%emt 0:00:00]} d3 {[%emt 0:00:42][%cal Bd4d3,Bd3d2][%mdl 32]} 64. Ra8 {[%emt 0:03:01]} Kc2 {[%emt 0:00:34]} 65. Rc8+ {[%emt 0:00:32] [#]} Kd1 $1 {[%emt 0:00:23]} 66. Rc7 {[%emt 0:03:51]} d2 {[%emt 0:00:43]} 67. Rc8 {[%emt 0:00:24]} Rd3 {[%emt 0:00:50]} 68. Rc7 {[%emt 0:00:15]} Rd5 {[%emt 0:00:18]} 69. Rc8 $1 {[%emt 0:00:48]} Rd4 {[%emt 0:00:24] ( -> ...Rf4+)} 70. Rc5 {[%emt 0:05:26]} Rf4+ {[%emt 0:00:18]} 71. Ke3 {[%emt 0:01:23]} Rf1 {[%emt 0:00:52] Black mates.} 72. Rd5 {[%emt 0:00:34]} f4+ {[%emt 0:00:32]} 73. Kd3 {[%emt 0:00:06]} Rf3+ {[%emt 0:00:23]} 74. Ke4 {[%emt 0:00:48]} Rc3 {[%emt 0:00:19] Weighted Error Value: White=0.63/Black=0.13 (very precise)} 0-1

[Event "Czech Championship Women 2022"]
[Site "Jaromerice nad Rokytnou"]
[Date "2022.05.25"]
[Round "5.1"]
[White "Koubova, Anna Marie"]
[Black "Pilsova, Karolina"]
[Result "1/2-1/2"]
[ECO "E11"]
[WhiteElo "2115"]
[BlackElo "2229"]
[Annotator "TA"]
[PlyCount "72"]
[EventDate "2022.05.24"]
[EventType "tourn"]
[EventCountry "CZE"]
[SourceTitle "playchess.com"]
[Source "ChessBase"]
[SourceQuality "1"]
[TimeControl "40/5400+30:1800+30"]

{[%evp 13,72,38,22,28,18,-6,35,28,27,27,35,29,56,37,46,46,48,47,43,41,34,37,39,31,36,29,30,22,24,22,24,26,31,12,8,0,19,5,1,4,4,0,0,0,6,6,6,6,8,2,5,0,0,0,0,0,8,0,0,0,8]} 1. d4 {[%emt 0:00:06]} Nf6 {[%emt 0:00:09]} 2. c4 {[%emt 0:00:10]} e6 {[%emt 0:00:09]} 3. Nf3 {[%emt 0:00:19]} Bb4+ {[%emt 0:00:08]} 4. Bd2 {[%emt 0:00:13]} a5 {[%emt 0:00:09]} 5. g3 {[%emt 0:01:13]} d6 {[%emt 0:00:18]} 6. Bg2 {[%emt 0:00:25]} Nbd7 {[%emt 0:00:28]} 7. O-O {[%emt 0:00:42]} e5 {[%emt 0:00:40]} 8. dxe5 {[%emt 0:01:12] 8.e3 is a critical line. E11: Bogo-Indian.} dxe5 {[%emt 0:01:05] 8...Nxe5 is not played anymore.} 9. Qc2 {[%emt 0:01:04]} O-O {[%emt 0:01:49]} 10. Nc3 {[%emt 0:00:45] White is slightly better.} c6 {[%emt 0:04:53]} 11. a3 {[%emt 0:01:38]} Bc5 {[%emt 0:04:58]} 12. Na4 {[%emt 0:02:49] [#]} Bd6 $146 {[%emt 0:06:48]} ({Predecessor:} 12... Re8 13. b4 axb4 14. Nxc5 Nxc5 15. axb4 Rxa1 16. Rxa1 e4 17. bxc5 exf3 18. Bxf3 Bg4 {½-½ (29) Gyimesi,Z (2610)-Kveinys,A (2517) Kemer 2007}) 13. b4 {[%emt 0:03:05]} axb4 {[%emt 0:02:52]} 14. axb4 {[%emt 0:00:26]} Re8 {[%emt 0:01:04]} 15. Rfd1 {[%emt 0:12:44]} Qe7 {[%emt 0:13:38]} 16. c5 {[%emt 0:20:40]} Bc7 {[%emt 0:00:55]} 17. e4 {[%emt 0:00:47]} Nf8 {[%emt 0:02:10]} 18. Bc3 {[%emt 0:01:34]} Bg4 {[%emt 0:02:07]} 19. h3 {[%emt 0:13:05]} Bxf3 {[%emt 0:02:36]} 20. Bxf3 {[%emt 0:00:08]} Ne6 {[%emt 0:00:11]} 21. Nb2 {[%emt 0:06:13]} Rxa1 {[%emt 0:09:41]} 22. Rxa1 {[%emt 0:00:11]} Rd8 {[%emt 0:00:11]} 23. Rd1 {[%emt 0:16:28]} Rxd1+ {[%emt 0:07:46] The position is equal.} 24. Nxd1 {[%emt 0:00:24]} Qd7 {[%emt 0:07:41]} (24... Ng5 {with more complications.} 25. Bg2 Qd7 26. Kh2 Ngxe4 27. Bxe4 Nxe4 28. Qxe4 Qxd1 29. Bxe5 Bxe5 30. Qxe5 g6) 25. Qd2 {[%emt 0:04:43] Prevents Ng5.} Qxd2 {[%emt 0:13:38]} 26. Bxd2 {[%emt 0:00:05]} Nd4 {[%emt 0:00:06]} 27. Kg2 {[%emt 0:03:26]} Kf8 {[%emt 0:04:03]} 28. Ne3 {[%emt 0:01:41]} Nxf3 {[%emt 0:03:41]} 29. Kxf3 $11 {[%emt 0:00:09][%mdl 4096] Endgame KBN-KBN} Nd7 {[%emt 0:00:15]} 30. Nc4 {[%emt 0:00:49]} Ke7 {[%emt 0:00:48]} 31. Ke3 {[%emt 0:01:08]} Ke6 {[%emt 0:00:57]} 32. Kd3 {[%emt 0:00:50]} h5 {[%emt 0:01:32]} 33. g4 {[%emt 0:01:12]} hxg4 {[%emt 0:03:44]} 34. hxg4 {[%emt 0:00:07]} g6 {[%emt 0:01:05]} 35. Ne3 {[%emt 0:03:23]} Bd8 {[%emt 0:00:58]} 36. Nc4 {[%emt 0:00:22]} Bc7 {[%emt 0:00:51] Weighted Error Value: White=0.05 (flawless) /Black=0.04 (flawless)} 1/2-1/2

[Event "Czech Championship Women 2022"]
[Site "Jaromerice nad Rokytnou"]
[Date "2022.05.25"]
[Round "5.2"]
[White "Trasakova, Adela"]
[Black "Novosadova, Kristyna"]
[Result "0-1"]
[ECO "D77"]
[WhiteElo "1842"]
[BlackElo "2147"]
[Annotator "TA"]
[PlyCount "118"]
[EventDate "2022.05.24"]
[EventType "tourn"]
[EventCountry "CZE"]
[SourceTitle "playchess.com"]
[Source "ChessBase"]
[SourceQuality "1"]
[TimeControl "40/5400+30:1800+30"]

{[%evp 18,118,30,15,39,43,95,92,90,81,107,105,139,108,126,94,112,122,259,20,20,23,21,21,28,34,29,14,33,43,45,0,0,0,0,0,0,-1,-1,-3,-5,-3,0,-5,0,0,-2,-3,0,0,0,-21,-3,-25,-19,-25,-16,-25,-14,-14,-14,-14,-14,-20,-14,-20,-14,-132,-132,-132,-132,-132,-125,-131,-131,-131,-64,-152,-131,-118,-117,-117,-117,-1191,-879,-1458,-536,-10961,-10696,-6589,-6426,-4707,-2491,-29962,-29954,-29976,-29971,-29964,-29961,-10961,-6546,-29971,-7804]} 1. d4 {[%emt 0:00:02]} Nf6 {[%emt 0:00:06]} 2. Nf3 {[%emt 0:00:03]} g6 {[%emt 0:00:07]} 3. g3 {[%emt 0:00:03]} Bg7 {[%emt 0:00:07]} 4. Bg2 {[%emt 0:00:02]} O-O {[%emt 0:00:10]} 5. O-O {[%emt 0:00:03]} d5 {[%emt 0:00:16]} 6. c4 {[%emt 0:00:02]} dxc4 {[%emt 0:00:25]} 7. Na3 {[%emt 0:00:34]} c3 {[%emt 0:00:07]} 8. bxc3 {[%emt 0:00:20]} c5 {[%emt 0:00:17]} 9. Re1 {[%emt 0:02:10]} Nc6 {[%emt 0:01:29]} 10. e4 {[%emt 0:02:33]} cxd4 {[%emt 0:12:59] is cutting edge theory. D77: Fianchetto Grünfeld: 6 0-0: Replies other than 6...c6.} 11. cxd4 {[%emt 0:00:50] [#]} b6 $146 {[%emt 0:04:34]} (11... Bg4 $14) ({Predecessor:} 11... Bg4 12. Bb2 Nd7 13. Rb1 Qa5 14. Re3 Rfd8 15. d5 Nce5 16. Bxe5 Nxe5 17. Rxb7 Rac8 18. Rb5 {0-1 (47) Petrosian,T (2612)-Nakamura,H (2754) Chess.com INT 2019}) 12. Bb2 $16 {[%emt 0:02:47]} Bb7 {[%emt 0:00:11] White is better.} 13. Rc1 {[%emt 0:04:03]} Nb4 {[%emt 0:04:54] [#]} 14. Qb3 $1 {[%emt 0:03:43]} a5 {[%emt 0:00:08]} 15. Ne5 {[%emt 0:04:21]} Nd7 {[%emt 0:05:38]} 16. Red1 {[%emt 0:11:26]} Nxe5 {[%emt 0:07:36]} 17. dxe5 {[%emt 0:00:34]} Qb8 {[%emt 0:00:13] [#]} (17... Qe8 $16) 18. Nc4 $2 {[%emt 0:11:30]} (18. e6 $1 $18) 18... Bc8 $1 $11 {[%emt 0:08:59][%cal Bb7c8,Bc8e6,Be6c4][%mdl 32]} 19. a3 {[%emt 0:04:15]} Be6 {[%emt 0:04:33][%cal Ob6b5]} 20. axb4 {[%emt 0:09:22] Threatens to win with b5.} b5 {[%emt 0:00:07] [#]} 21. bxa5 $1 {[%emt 0:03:56][%cal Og2f1] Bf1! is the strong threat.} Bxc4 {[%emt 0:06:09]} 22. Qb4 {[%emt 0:03:47]} Bxe5 {[%emt 0:07:05]} 23. Bxe5 {[%emt 0:01:58]} Qxe5 {[%emt 0:00:08]} 24. Bf1 {[%emt 0:00:58]} Rfc8 {[%emt 0:12:57]} 25. Bxc4 {[%emt 0:02:15]} bxc4 {[%emt 0:02:14]} 26. Rxc4 {[%emt 0:00:43]} Rcb8 {[%emt 0:03:52]} 27. Qc3 {[%emt 0:07:13]} Qxc3 {[%emt 0:00:21]} 28. Rxc3 {[%emt 0:00:02]} Rxa5 {[%emt 0:00:07][%mdl 4096] Endgame KRR-KRR} 29. Rd7 {[%emt 0:03:11]} Re5 {[%emt 0:01:09]} 30. Rc4 {[%emt 0:04:09]} Rb1+ {[%emt 0:01:32]} 31. Kg2 {[%emt 0:00:01]} Re1 {[%emt 0:00:12]} 32. Rdd4 {[%emt 0:00:41]} g5 {[%emt 0:03:10]} 33. g4 {[%emt 0:02:51]} Kg7 {[%emt 0:01:07]} 34. Kf3 {[%emt 0:03:36]} h5 {[%emt 0:02:09]} 35. h3 {[%emt 0:01:34]} h4 {[%emt 0:01:41]} 36. Rd3 {[%emt 0:01:44]} Rb5 {[%emt 0:00:48]} 37. Rd5 {[%emt 0:05:22]} Rxd5 {[%emt 0:02:23]} 38. exd5 {[%emt 0:00:02] KR-KR} Rh1 {[%emt 0:01:15]} 39. Kg2 {[%emt 0:00:20]} Rd1 {[%emt 0:00:07]} 40. Rc5 {[%emt 0:00:16]} f6 {[%emt 0:01:14]} 41. Rb5 {[%emt 0:13:17]} (41. f4 $5) 41... Kf7 {[%emt 0:00:24]} 42. Ra5 {[%emt 0:00:20]} (42. f4 $1 $11 {was the only way to keep the balance.}) 42... Rd3 $17 {[%emt 0:02:52]} 43. Rb5 {[%emt 0:02:14]} Ke8 {[%emt 0:00:07]} 44. Rb4 {[%emt 0:00:48]} Kd7 {[%emt 0:01:26]} 45. f4 {[%emt 0:00:43]} gxf4 {[%emt 0:02:07]} ({Weaker is} 45... Rxd5 46. fxg5 fxg5 47. Kf3 $17) 46. Rxf4 {[%emt 0:00:19]} Rxd5 {[%emt 0:04:43]} (46... Kd6 $17 47. Ra4 Kxd5) 47. Rf2 {[%emt 0:03:48]} (47. Rb4 $15) 47... Kd6 {[%emt 0:00:29]} 48. Re2 {[%emt 0:02:45]} e5 {[%emt 0:03:21] And now ...Rd3 would win.} 49. Rf2 {[%emt 0:02:17]} Ke6 {[%emt 0:00:06] Strongly threatening ...Rd3.} 50. Kf1 $2 {[%emt 0:01:17][%mdl 8192]} (50. Rf5 $17) 50... Rd3 $19 {[%emt 0:00:34]} 51. Kg2 {[%emt 0:00:11]} e4 {[%emt 0:01:57]} (51... Rg3+ $142 52. Kf1 Rxh3) 52. Rf5 {[%emt 0:01:29]} Rg3+ {[%emt 0:03:06]} 53. Kf2 {[%emt 0:01:32]} Rxh3 {[%emt 0:00:59][%cal Oh3f3]} 54. Rh5 {[%emt 0:00:09]} Rf3+ {[%emt 0:00:50]} 55. Ke2 {[%emt 0:02:04]} h3 {[%emt 0:00:13]} 56. g5 {[%emt 0:01:18]} f5 {[%emt 0:06:29][%cal Bf6f5,Bf5f4][%mdl 32]} 57. Rh6+ {[%emt 0:02:30]} Ke5 {[%emt 0:00:29]} 58. Ke1 {[%emt 0:00:51]} Rg3 {[%emt 0:03:12] ( -> ...f4)} 59. Kf2 {[%emt 0:00:45]} f4 {[%emt 0:00:13] Never resign too early!  Weighted Error Value: White=0.88/Black=0.25 (precise)} 0-1

[Event "Czech Championship Women 2022"]
[Site "Jaromerice nad Rokytnou"]
[Date "2022.05.25"]
[Round "5.3"]
[White "Richterova, Natasa"]
[Black "Sikorova, Olga"]
[Result "1-0"]
[ECO "B42"]
[WhiteElo "2181"]
[BlackElo "2173"]
[Annotator "TA"]
[PlyCount "69"]
[EventDate "2022.05.24"]
[EventType "tourn"]
[EventCountry "CZE"]
[SourceTitle "playchess.com"]
[Source "ChessBase"]
[SourceQuality "1"]
[TimeControl "40/5400+30:1800+30"]

{[%evp 13,69,27,41,20,51,46,55,25,27,0,12,11,12,7,15,3,8,6,12,0,2,0,14,7,15,19,9,11,37,26,41,42,34,34,48,17,58,0,0,-5,-4,0,85,80,116,124,132,127,290,267,572,409,737,722,955,891,873,939]} 1. e4 {[%emt 0:00:10]} c5 {[%emt 0:00:15]} 2. Nf3 {[%emt 0:00:04]} e6 {[%emt 0:00:12]} 3. d4 {[%emt 0:00:14]} cxd4 {[%emt 0:00:08]} 4. Nxd4 {[%emt 0:00:00]} a6 {[%emt 0:00:12]} 5. c4 {[%emt 0:00:28]} Nf6 {[%emt 0:00:54]} 6. Bd3 {[%emt 0:01:04]} Qc7 {[%emt 0:01:37]} 7. O-O {[%emt 0:00:36]} b6 {[%emt 0:00:45]} 8. Re1 {[%emt 0:03:48] B42: Sicilian: Kan Variation: 5 Bd3.} d6 {[%emt 0:03:31]} 9. Nc3 {[%emt 0:04:42]} Nbd7 {[%emt 0:02:22][%cal Bb8d7,Bd7e5,Be5d3][%mdl 32]} 10. Qe2 {[%emt 0:20:28][%cal Oc3d5] White wants to play Nd5! White is slightly better.} Ne5 {[%emt 0:08:05] [#]} 11. Nf3 $146 {[%emt 0:05:46]} ({Predecessor:} 11. f4 Nxd3 12. Qxd3 Bb7 13. b3 Rc8 14. Bb2 Be7 15. f5 e5 16. Nf3 Ng4 17. Re2 {½-½ (44) Frost,P (1862)-Woong,Z (1591) Penang 2012}) 11... Nxd3 {[%emt 0:16:23]} 12. Qxd3 {[%emt 0:00:20]} Bb7 {[%emt 0:00:15]} 13. b3 {[%emt 0:04:09]} Be7 {[%emt 0:02:25]} 14. Bf4 {[%emt 0:02:28]} O-O {[%emt 0:04:48]} 15. Rac1 {[%emt 0:03:25]} Rfd8 {[%emt 0:10:00]} 16. Nd2 {[%emt 0:05:18]} Rac8 {[%emt 0:07:02]} 17. Nf1 {[%emt 0:01:10]} Ba8 {[%emt 0:03:01]} 18. f3 {[%emt 0:00:50]} Qb7 {[%emt 0:01:09]} 19. Qe2 {[%emt 0:02:32]} Rd7 {[%emt 0:04:34]} 20. Be3 {[%emt 0:02:38]} Bd8 {[%emt 0:01:00]} 21. Bd4 {[%emt 0:00:58]} Rdc7 {[%emt 0:05:15][%cal Ob6b5]} 22. a4 {[%emt 0:07:26] Inhibits b5.} Qb8 {[%emt 0:02:09]} 23. Ng3 {[%emt 0:08:07]} Rd7 {[%emt 0:04:56]} 24. Rcd1 {[%emt 0:05:28]} Bc6 {[%emt 0:07:05]} 25. Rc1 {[%emt 0:09:50]} (25. f4 $14) 25... Rb7 {[%emt 0:02:18]} 26. e5 {[%emt 0:02:15]} Ne8 {[%emt 0:02:56]} 27. f4 {[%emt 0:03:05]} Rd7 {[%emt 0:04:03] [#]} (27... b5 $11 {keeps the balance.}) 28. f5 $1 $16 {[%emt 0:00:14] White is more active.} Bg5 {[%emt 0:04:28]} 29. fxe6 {[%emt 0:00:58]} fxe6 {[%emt 0:00:34]} 30. Rcd1 {[%emt 0:00:04] Threatens to win with Qg4.} Bh6 $2 {[%emt 0:02:16] This move loses the game for Black.} (30... dxe5 $16 31. Bxe5 Qb7) 31. Qg4 $18 {[%emt 0:00:42]} Nc7 {[%emt 0:00:21] [#]} (31... Rf7 {is more resistant.} 32. exd6 (32. Qxe6 Bd7 $11) 32... Bd7) 32. Nce4 {[%emt 0:01:24]} Kh8 {[%emt 0:00:36]} (32... d5 $142) 33. exd6 {[%emt 0:00:36] White is clearly winning.} Ne8 {[%emt 0:00:14]} 34. Qxe6 {[%emt 0:00:48]} Nxd6 {[%emt 0:01:02]} 35. Nxd6 {[%emt 0:00:54] Weighted Error Value: White=0.13 (very precise) /Black=0.39} 1-0

[Event "Czech Championship Women 2022"]
[Site "Jaromerice nad Rokytnou"]
[Date "2022.05.25"]
[Round "5.4"]
[White "Zelbova, Lada"]
[Black "Lhotska, Anna"]
[Result "1/2-1/2"]
[ECO "B92"]
[WhiteElo "1967"]
[BlackElo "2029"]
[Annotator "TA"]
[PlyCount "86"]
[EventDate "2022.05.24"]
[EventType "tourn"]
[EventCountry "CZE"]
[SourceTitle "playchess.com"]
[Source "ChessBase"]
[SourceQuality "1"]
[TimeControl "40/5400+30:1800+30"]

{[%evp 24,86,0,6,51,20,30,29,37,27,28,29,37,45,38,27,46,32,43,51,48,0,0,0,74,81,96,43,98,43,39,34,37,0,50,45,66,12,14,8,8,13,9,22,172,140,128,0,0,0,85,73,110,42,134,8,12,8,8,8,12,0,0,0,0]} 1. e4 {[%emt 0:00:04]} c5 {[%emt 0:00:05]} 2. Nf3 {[%emt 0:00:07]} d6 {[%emt 0:00:04]} 3. d4 {[%emt 0:00:04]} cxd4 {[%emt 0:00:04]} 4. Nxd4 {[%emt 0:00:05]} Nf6 {[%emt 0:00:05]} 5. Nc3 {[%emt 0:00:04]} a6 {[%emt 0:00:05]} 6. Be2 {[%emt 0:00:06]} e5 {[%emt 0:00:16]} 7. Nb3 {[%emt 0:00:11]} Be7 {[%emt 0:00:14]} 8. Be3 {[%emt 0:00:18]} Be6 {[%emt 0:00:19]} 9. Nd5 {[%emt 0:00:10]} Nbd7 {[%emt 0:00:25]} 10. Qd3 {[%emt 0:00:10]} O-O {[%emt 0:00:35]} 11. O-O {[%emt 0:01:05]} Bxd5 {[%emt 0:08:18]} 12. exd5 {[%emt 0:00:59]} Rc8 $1 {[%emt 0:01:34][%mdl 4] is more profitable than 12...Ne8 at the moment.} 13. c4 {[%emt 0:03:09] [#]} h5 $146 {[%emt 0:01:56] B92: Sicilian Najdorf: 6 Be2.} ({Predecessor:} 13... Ne8 14. a4 a5 15. Bg4 e4 16. Qxe4 Nef6 17. Qf4 Nxg4 18. Qxg4 Ne5 19. Qe2 Nxc4 20. Bd4 Bf6 21. Rfe1 {½-½ (32) Santos Ruiz,M (2596)-Grischuk,A (2764) Chess.com INT 2022}) 14. a4 {[%emt 0:08:15]} e4 {[%emt 0:04:15]} 15. Qd4 {[%emt 0:06:34]} Ne5 {[%emt 0:20:33] White has an edge.} 16. Nd2 {[%emt 0:03:52]} Nfg4 {[%emt 0:02:41]} 17. Nxe4 {[%emt 0:06:33]} f5 {[%emt 0:03:05]} 18. Nd2 {[%emt 0:01:43]} Bf6 {[%emt 0:21:59][%cal Og4h2]} 19. Qb6 {[%emt 0:06:20]} Qe7 {[%emt 0:02:58]} 20. Ra3 {[%emt 0:14:45]} Nd7 {[%emt 0:12:52]} 21. Qb4 {[%emt 0:03:52]} Be5 {[%emt 0:02:01]} 22. Bxg4 {[%emt 0:09:09]} (22. Nf3 $14 {is superior.}) 22... hxg4 $11 {[%emt 0:00:38]} 23. f4 {[%emt 0:00:21]} gxf3 {[%emt 0:03:04]} (23... Bf6 $11) 24. Nxf3 $16 {[%emt 0:00:19]} f4 {[%emt 0:01:25]} 25. Bd4 {[%emt 0:03:35]} (25. Bf2 $16) 25... Rfe8 {[%emt 0:08:54]} (25... Qf6 $14 26. Nxe5 dxe5) 26. Bxe5 {[%emt 0:02:58] White is more active.} (26. Bf2 $16) 26... Nxe5 $14 {[%emt 0:00:09]} 27. Nxe5 {[%emt 0:00:35]} Qxe5 {[%emt 0:00:06]} 28. Qc3 {[%emt 0:09:00] Against Qd4+} b5 {[%emt 0:05:11]} ({Black should try} 28... Qg5 $11) 29. Qxe5 {[%emt 0:05:28]} Rxe5 {[%emt 0:00:23]} 30. Rxf4 {[%emt 0:01:27]} (30. cxb5 $14 axb5 31. h4 (31. Rxf4 Rc1+ 32. Kf2 bxa4 $16) (31. axb5 Rxd5 32. Rxf4 Rxb5 $14)) 30... Rxc4 $11 {[%emt 0:00:32]} 31. Rxc4 {[%emt 0:00:33]} bxc4 $14 {[%emt 0:00:03][%mdl 4096] Endgame KR-KR} 32. Rc3 {[%emt 0:02:40]} Rxd5 {[%emt 0:00:08]} 33. Rxc4 {[%emt 0:00:07] aiming for b4.} Rd2 {[%emt 0:01:07]} (33... Rd1+ $11 {and Black stays safe.} 34. Kf2 Rd2+ 35. Kf3 Rxb2) 34. Rc6 {[%emt 0:06:27]} a5 {[%emt 0:00:30]} 35. Kf1 {[%emt 0:05:03]} ({White should play} 35. b3 $16) 35... Rxb2 $11 {[%emt 0:00:39]} 36. Ra6 {[%emt 0:00:49]} Kf7 {[%emt 0:00:20]} (36... Rb1+ $11 {remains equal.} 37. Ke2 Rb2+ 38. Kf1 Rb1+ 39. Ke2 Rb2+ 40. Kf3 Rb3+ 41. Kf2 Rb2+ 42. Kg3 Rb3+ 43. Kf2 Rb2+ 44. Kf3 Rb3+ 45. Ke2 Rb2+) 37. Rxa5 $16 {[%emt 0:00:13]} ({Much worse is} 37. Rxd6 $6 Rb4 $11) 37... Ra2 {[%emt 0:00:14][%cal Od6d5]} 38. h3 {[%emt 0:00:54]} ({Better is} 38. Ra7+ $16 Ke6 39. a5 (39. Rxg7 Rxa4 40. h3 d5 $16)) 38... Ke6 {[%emt 0:00:36] [#]} (38... d5 $1 $14) 39. Rg5 {[%emt 0:00:15]} (39. Ra8 $1 $16) 39... Kf6 {[%emt 0:00:23] The position is equal.} 40. Rg4 {[%emt 0:00:44]} d5 {[%emt 0:00:36]} 41. h4 {[%emt 0:18:04]} g6 {[%emt 0:01:39]} 42. Rg5 {[%emt 0:06:58]} Rxa4 {[%emt 0:02:16]} 43. Rxd5 {[%emt 0:00:08]} Rxh4 {[%emt 0:00:11] Weighted Error Value: White=0.28 (precise) /Black=0.28 (precise)} 1/2-1/2